bitfinex-derivatives/quotes_SOLF0:USTF0_20251210
["timestamp","ask_amount","ask_price","bid_price","bid_amount"]
[1765383717673,3.18340746,136.62,136.59,3.28974281]
[1765383717870,0.05340746,136.62,136.59,3.28974281]
[1765383718275,0.05340746,136.62,136.6,6.5886]
[1765383718481,0.05340746,136.62,136.6,9.8286]
[1765383718983,0.05340746,136.62,136.6,3.24]
[1765383720178,0.05340746,136.62,136.61,62.18]
[1765383720385,9.7155,136.67,136.62,3.24]
[1765383721079,3.13,136.71,136.63,3.24]
[1765383721284,0.05234091,136.68,136.66,3.2873199]
[1765383721987,3.18234091,136.68,136.66,0.0473199]
[1765383722782,9.76724091,136.68,136.66,0.0473199]
[1765383722988,3.13,136.67,136.66,0.0473199]
[1765383723187,0.05234091,136.68,136.66,0.0473199]
[1765383724291,0.05234091,136.68,136.66,3.1273199]
[1765383724886,6.5832,136.72,136.66,3.1273199]
[1765383725483,9.6832,136.72,136.67,3.08]
[1765383725792,0.05314067,136.71,136.67,3.08]
[1765383726093,3.1,136.7,136.66,3.1273199]
[1765383726595,0.05314067,136.71,136.66,3.1273199]
[1765383727893,0.05314067,136.71,136.66,9.7129199]
[1765383728087,0.05314067,136.71,136.67,3.08]
[1765383728496,3.1,136.7,136.66,3.1273199]
[1765383728792,3.1,136.7,136.66,0.0473199]
[1765383728986,3.1,136.67,136.66,0.0473199]
[1765383736290,3.06,136.63,136.6,62.18]
[1765383737094,9.6479,136.62,136.6,62.18]
[1765383737496,3.06,136.61,136.6,62.2305749]
[1765383739095,6.63760354,136.62,136.6,62.2305749]
[1765383739096,0.04970354,136.62,136.61,3.26]
[1765383739799,102.4263,136.69,136.61,3.26]
[1765383740006,3.06,136.69,136.61,3.26]
[1765383740600,6.5854,136.67,136.62,3.26]
[1765383740902,3.11491591,136.66,136.63,0.04744537]
[1765383741990,0.05491591,136.66,136.63,3.30744537]
[1765383742797,3.11491591,136.66,136.63,3.30744537]
[1765383743200,9.70081591,136.66,136.63,3.30744537]
[1765383743503,9.70081591,136.66,136.63,0.04744537]
[1765383743504,3.06,136.65,136.63,0.04744537]
[1765383745103,3.06,136.64,136.63,0.04744537]
[1765383746102,9.6463,136.65,136.63,0.04744537]
[1765383746404,0.05491591,136.66,136.63,3.30744537]
[1765383751008,3.11491591,136.66,136.63,0.04744537]
[1765383751905,9.70071591,136.66,136.63,0.04744537]
[1765383752711,0.05491591,136.66,136.63,3.30744537]
[1765383756604,0.05491591,136.66,136.63,9.89464537]
[1765383756901,0.05491591,136.66,136.64,3.09]
[1765383757522,0.05491591,136.66,136.64,9.6767]
[1765383757811,0.05491591,136.66,136.65,3.09]
[1765383758910,105.4215,136.75,136.68,3.09]
[1765383759112,105.4215,136.75,136.69,3.09]
[1765383759407,3.04,136.74,136.69,3.09]
[1765383759610,9.623,136.72,136.69,3.09]
[1765383759911,3.04,136.71,136.68,65.29]
[1765383760105,3.04,136.71,136.68,65.33640323]
[1765383760106,3.09047479,136.71,136.68,65.33640323]
[1765383760306,0.05047479,136.71,136.68,65.33640323]
[1765383760510,0.05047479,136.71,136.69,3.09]
[1765383762813,0.05047479,136.71,136.68,65.33640323]
[1765383763513,0.05047479,136.71,136.69,3.09]
[1765383767819,0.05047479,136.71,136.69,9.6743]
[1765383768111,3.04,136.78,136.7,3.09]
[1765383768925,3.04,136.78,136.73,0.04677974]
[1765383769112,3.04,136.78,136.73,62.22677974]
[1765383769323,6.5812,136.76,136.73,0.04677974]
[1765383769911,9.6212,136.76,136.73,0.04677974]
[1765383770417,9.6212,136.76,136.73,3.13677974]
[1765383770915,6.5804,136.78,136.73,3.13677974]
[1765383771120,3.04,136.81,136.75,3.09]
[1765383771427,3.04,136.81,136.77,3.14608384]
[1765383771810,9.6189,136.81,136.77,3.14608384]
[1765383775421,3.04,136.84,136.77,3.14608384]
[1765383776227,6.5773,136.84,136.79,3.09]
[1765383776420,6.5773,136.84,136.81,3.09]
[1765383777017,9.6165,136.86,136.81,3.09]
[1765383777217,3.04,136.86,136.81,3.09]
[1765383777418,3.04,136.88,136.81,3.09]
[1765383777618,3.04,136.88,136.83,3.14149931]
[1765383777925,3.04,136.88,136.83,0.05149931]
[1765383778311,3.04,136.85,136.83,0.05149931]
[1765383780024,9.6168,136.85,136.83,0.05149931]
[1765383780528,3.04,136.84,136.83,0.05149931]
[1765383780825,9.6168,136.85,136.83,0.05149931]
[1765383781731,6.5759,136.87,136.83,3.14149931]
[1765383781921,9.6159,136.87,136.83,3.14149931]
[1765383782122,3.04,136.86,136.83,3.14149931]
[1765383782722,16.7501672,136.89,136.83,3.14149931]
[1765383782928,3.04,136.88,136.83,3.14149931]
[1765383783121,9.6153,136.88,136.83,3.14149931]
[1765383783322,3.04,136.87,136.83,0.05149931]
[1765383785021,3.04,136.87,136.83,3.31149931]
[1765383785223,3.12,136.9,136.83,3.31149931]
[1765383785924,6.5753,136.88,136.84,3.26]
[1765383787934,9.6953,136.88,136.84,3.26]
[1765383788324,3.12,136.87,136.83,0.05149931]
[1765383788531,3.12,136.87,136.83,62.17149931]
[1765383789026,109.4043672,136.9,136.83,0.05149931]
[1765383789027,3.12,136.86,136.83,0.05149931]
[1765383789928,6.5761,136.87,136.83,3.31149931]
[1765383790420,9.6961,136.87,136.83,3.31149931]
[1765383791036,3.12,136.86,136.83,3.31149931]
[1765383791233,3.12,136.89,136.83,3.31149931]
[1765383791538,6.73051004,136.91,136.83,3.31149931]
[1765383792134,3.12,136.9,136.83,3.31149931]
[1765383793022,9.6944,136.9,136.85,3.21]
[1765383793237,9.6944,136.9,136.86,3.26066846]
[1765383794137,6.5748,136.89,136.86,3.26066846]
[1765383794436,3.3,136.89,136.86,0.05066846]
[1765383794830,9.8752,136.88,136.86,0.05066846]
[1765383795933,3.3,136.88,136.86,0.05066846]
[1765383798038,3.3,136.87,136.86,0.05066846]
[1765383798745,9.8772,136.84,136.79,62.1]
[1765383798941,9.8772,136.84,136.8,3.21]
[1765383799555,6.5765,136.86,136.8,3.21]
[1765383799755,0.0493157,136.84,136.83,3.21]
[1765383800057,0.0493157,136.84,136.82,3.25754524]
[1765383800455,6.6265157,136.84,136.82,0.04754524]
[1765383800752,9.9265157,136.84,136.82,0.04754524]
[1765383802257,3.3,136.83,136.82,0.04754524]
[1765383803359,9.9265157,136.84,136.82,0.04754524]
[1765383805052,3.3,136.83,136.82,0.04754524]
[1765383806658,0.0493157,136.84,136.82,3.25754524]
[1765383806853,3.3,136.9,136.84,3.21]
[1765383807055,3.3,136.9,136.84,65.31]
[1765383807558,3.3,136.9,136.85,3.21]
[1765383808056,3.3,136.9,136.86,0.05244577]
[1765383808857,6.5747,136.89,136.86,0.05244577]
[1765383809060,9.8747,136.89,136.86,0.05244577]
[1765383809256,3.3,136.88,136.86,0.05244577]
[1765383809461,3.3,136.87,136.86,0.05244577]
[1765383815164,3.26,136.85,136.79,12.27437186]
[1765383815373,3.26,136.85,136.79,65.37]
[1765383816170,0.05205781,136.83,136.81,0.05471165]
[1765383816467,9.88975781,136.83,136.81,0.05471165]
[1765383816973,3.26,136.82,136.81,0.05471165]
[1765383817672,9.88975781,136.83,136.81,0.05471165]
[1765383817967,6.62975781,136.83,136.81,3.32471165]
[1765383819062,0.05205781,136.83,136.81,3.32471165]
[1765383819564,3.31205781,136.83,136.81,0.05471165]
[1765383821969,0.05205781,136.83,136.81,0.05471165]
[1765383822467,0.05205781,136.83,136.81,3.32471165]
[1765383825177,0.05205781,136.83,136.82,3.27]
[1765383825368,0.05205781,136.83,136.82,9.8481]
[1765383825568,0.05205781,136.83,136.82,9.00437186]
[1765383825766,0.05205781,136.83,136.81,12.32908351]
[1765383826376,0.05205781,136.83,136.82,3.27]
[1765383826873,0.05205781,136.83,136.81,12.32908351]
[1765383831377,3.31205781,136.83,136.81,9.05908351]
[1765383831566,3.31205781,136.83,136.81,0.05471165]
[1765383831767,0.05205781,136.83,136.81,3.32471165]
[1765383834577,6.62965781,136.83,136.81,3.32471165]
[1765383836175,6.62965781,136.83,136.81,65.42471165]
[1765383836386,0.05205781,136.83,136.81,65.42471165]
[1765383837073,3.31205781,136.83,136.81,0.05471165]
[1765383837280,0.05205781,136.83,136.81,3.32471165]
[1765383838578,9.88965781,136.83,136.81,0.05471165]
[1765383839275,3.31205781,136.83,136.81,0.05471165]
[1765383839671,3.31205781,136.83,136.81,3.32471165]
[1765383840379,3.31205781,136.83,136.81,0.05471165]
[1765383841873,7.98335079,136.83,136.81,0.05471165]
[1765383842177,3.26,136.82,136.81,0.05471165]
[1765383842479,9.8381,136.82,136.81,0.05471165]
[1765383842882,3.26,136.82,136.81,0.05471165]
[1765383845084,3.31205781,136.83,136.81,0.05471165]
[1765383846283,0.05205781,136.83,136.81,3.09471165]
[1765383847390,3.31205781,136.83,136.81,3.09471165]
[1765383847589,0.05205781,136.83,136.81,3.09471165]
[1765383849685,0.05205781,136.83,136.82,65.19]
[1765383851583,3.32,136.88,136.83,3.07]
[1765383851789,3.32,136.88,136.84,3.07]
[1765383852682,3.32,136.88,136.85,0.04695813]
[1765383852889,9.8952,136.88,136.85,0.04695813]
[1765383853190,8.28180302,136.91,136.86,3.07]
[1765383853191,3.32,136.9,136.86,3.07]
[1765383853489,3.32,136.9,136.85,3.11695813]
[1765383853891,3.32,136.88,136.85,3.11695813]
[1765383854390,3.32,136.88,136.85,0.04695813]
[1765383854693,3.32,136.86,136.85,0.04695813]
[1765383854885,3.32,136.89,136.85,0.04695813]
[1765383855086,3.32,136.89,136.85,3.11695813]
[1765383855989,9.8956,136.88,136.85,3.11695813]
[1765383856388,3.32,136.9,136.85,3.11695813]
[1765383857894,9.8947,136.89,136.85,3.11695813]
[1765383858391,9.8947,136.89,136.85,9.69355813]
[1765383858596,9.8947,136.89,136.86,3.07]
[1765383858786,3.61051004,136.91,136.88,3.07]
[1765383858991,3.61051004,136.91,136.88,4.72501301]
[1765383859294,3.61051004,136.91,136.89,3.07]
[1765383862486,3.61051004,136.91,136.89,9.6445]
[1765383862685,3.61051004,136.91,136.9,3.07]
[1765383862890,3.32,136.97,136.91,3.0]
[1765383863102,3.32,136.97,136.93,3.05242911]
[1765383863589,3.32,137.01,136.93,3.05242911]
[1765383863789,9.89,136.99,136.93,3.05242911]
[1765383864089,3.32,136.98,136.95,3.04662133]
[1765383864297,3.32,137.0,136.95,3.04662133]
[1765383864492,3.32,137.0,136.96,3.05564969]
[1765383864693,3.32,137.0,136.97,62.1]
[1765383865790,3.32,136.99,136.97,62.1]
[1765383865985,3.32,136.99,136.97,62.14976555]
[1765383866787,3.32,137.01,136.97,65.14976555]
[1765383867601,3.32,137.0,136.97,0.04976555]
[1765383867802,3.32,136.99,136.93,62.08]
[1765383868894,3.32,136.96,136.95,0.04780859]
[1765383871489,3.32,136.94,136.89,6.5743]
[1765383871695,3.32,136.94,136.89,62.08]
[1765383871895,3.32,136.94,136.89,65.08]
[1765383872096,3.32,136.93,136.9,3.0]
[1765383872304,3.32,136.96,136.9,3.0]
[1765383872507,3.32,136.93,136.92,0.04969462]
[1765383872704,4.67129298,136.96,136.92,0.04969462]
[1765383873000,106.89439298,136.96,136.92,0.04969462]
[1765383873307,4.67129298,136.96,136.92,0.04969462]
[1765383873805,0.04372933,136.95,136.92,0.04969462]
[1765383874005,6.61562933,136.95,136.92,0.04969462]
[1765383874210,0.04372933,136.95,136.92,0.04969462]
[1765383874807,3.33,136.94,136.92,0.04969462]
[1765383875008,9.9024,136.94,136.92,0.04969462]
[1765383875204,3.33,136.93,136.92,0.04969462]
[1765383876706,6.5724,136.94,136.92,0.04969462]
[1765383876908,9.9024,136.94,136.92,0.04969462]
[1765383877108,3.33,136.93,136.92,0.04969462]
[1765383877609,0.04372933,136.95,136.92,3.33969462]
[1765383878797,0.04372933,136.95,136.94,3.29]
[1765383879708,0.04372933,136.95,136.92,3.33969462]
[1765383880009,3.37372933,136.95,136.92,3.33969462]
[1765383880207,0.04372933,136.95,136.92,3.33969462]
[1765383887111,3.33,137.01,136.94,3.29]
[1765383887412,400.1547,137.05,136.94,3.29]
[1765383887413,2.98364734,136.98,136.94,3.29]
[1765383887606,3.33,136.97,136.94,3.29]
[1765383887803,3.33,136.97,136.9,3.29]
[1765383888107,3.33,136.97,136.91,68.33364734]
[1765383888308,3.33,136.97,136.92,3.33812777]
[1765383888708,3.33,136.96,136.92,3.33812777]
[1765383890313,6.31364734,136.98,136.92,3.33812777]
[1765383890517,6.31364734,136.98,136.93,6.5727]
[1765383890715,6.31364734,136.98,136.94,3.29]
[1765383891303,3.33,136.97,136.94,3.29]
[1765383893413,3.33,136.97,136.92,0.04812777]
[1765383893414,3.33,136.96,136.92,62.10812777]
[1765383893617,6.31364734,136.95,136.92,62.10812777]
[1765383893907,3.33,136.94,136.92,0.04812777]
[1765383897616,3.33,136.93,136.92,0.04812777]
[1765383898515,6.31364734,136.93,136.92,0.04812777]
[1765383899821,3.33,136.91,136.87,71.9252]
[1765383900021,3.33,136.91,136.87,65.35]
[1765383900022,3.33,136.9,136.87,65.35]
[1765383900423,3.33,136.9,136.85,3.29]
[1765383900627,3.33,136.9,136.85,65.35]
[1765383900928,3.37812777,136.89,136.86,3.33933715]
[1765383902229,0.04812777,136.89,136.86,3.33933715]
[1765383902726,3.37812777,136.89,136.86,0.04933715]
[1765383903219,3.33,136.87,136.86,0.04933715]
[1765383903525,0.04812777,136.89,136.86,3.33933715]
[1765383903829,3.37812777,136.89,136.86,3.33933715]
[1765383904820,3.07,136.88,136.86,0.04933715]
[1765383905526,9.6453,136.88,136.86,0.04933715]
[1765383905723,6.05364734,136.87,136.86,0.04933715]
[1765383907119,3.07,136.87,136.86,0.04933715]
[1765383907319,6.5773,136.84,136.81,3.06]
[1765383907522,9.6473,136.84,136.81,3.06]
[1765383908527,9.70006634,136.84,136.81,3.10806338]
[1765383908725,9.8578,136.83,136.81,0.04806338]
[1765383908924,3.28,136.82,136.76,151.07847661]
[1765383909123,105.30564734,136.83,136.76,142.07410475]
[1765383909124,3.28,136.8,136.76,142.07410475]
[1765383909525,3.28,136.8,136.74,62.08]
[1765383909723,3.28,136.78,136.74,65.43]
[1765383910029,109.10274204,136.89,136.74,65.43]
[1765383910030,0.04846762,136.77,136.76,3.35]
[1765383910234,2.98364734,136.81,136.76,3.35]
[1765383910235,0.05401614,136.78,136.76,3.35]
[1765383911334,0.05401614,136.78,136.77,6.33364734]
[1765383911534,0.05401614,136.78,136.77,3.35]
[1765383911734,0.05401614,136.78,136.77,6.33364734]
[1765383911930,3.28,136.84,136.75,0.05407605]
[1765383912126,3.28,136.81,136.77,2.98364734]
[1765383912428,3.28,136.81,136.77,6.33364734]
[1765383912938,3.3316184,136.8,136.78,0.04892614]
[1765383913320,0.0516184,136.8,136.78,3.39892614]
[1765383914034,3.28,136.86,136.8,3.35]
[1765383914236,3.28,136.86,136.81,6.33364734]
[1765383914434,3.28,136.86,136.81,2.98364734]
[1765383914634,3.28,136.86,136.82,3.35]
[1765383914929,0.03989376,136.85,136.83,6.38080686]
[1765383915133,0.03989376,136.85,136.84,3.35]
[1765383916631,0.03989376,136.85,136.83,12.96457946]
[1765383916825,0.03989376,136.85,136.84,3.35]
[1765383919938,0.03989376,136.85,136.83,12.96457946]
[1765383920539,0.03989376,136.85,136.83,9.98093212]
[1765383921641,3.31989376,136.85,136.83,0.05353212]
[1765383923234,0.03989376,136.85,136.83,3.40353212]
[1765383927041,0.03989376,136.85,136.84,3.35]
[1765383928038,3.31989376,136.85,136.83,3.40353212]
[1765383928344,3.31989376,136.85,136.83,0.05353212]
[1765383928543,0.03989376,136.85,136.83,3.40353212]
[1765383928846,9.89659376,136.85,136.83,3.40353212]
[1765383930045,9.89659376,136.85,136.83,0.05353212]
[1765383930252,3.31989376,136.85,136.83,0.05353212]
[1765383931344,3.28,136.84,136.83,0.05353212]
[1765383935349,3.08989376,136.85,136.83,0.05353212]
[1765383940852,9.66659376,136.85,136.83,0.05353212]
[1765383941050,3.05,136.84,136.83,0.05353212]
[1765383941241,3.05,136.84,136.81,68.6785]
[1765383941242,3.05,136.84,136.79,3.22]
[1765383941640,3.05,136.83,136.78,65.32]
[1765383941844,3.05,136.83,136.78,62.1]
[1765383942150,3.05,136.81,136.79,0.05381098]
[1765383942554,9.6286,136.81,136.79,0.05381098]
[1765383942752,3.05,136.8,136.79,0.05381098]
[1765383946644,6.5786,136.81,136.79,0.05381098]
[1765383946952,0.04838162,136.82,136.79,3.27381098]
[1765383948552,3.09838162,136.82,136.79,3.27381098]
[1765383948756,0.04838162,136.82,136.79,3.27381098]
[1765383951262,6.62658162,136.82,136.79,3.27381098]
[1765383951452,0.04838162,136.82,136.79,7.9454311]
[1765383951648,0.04838162,136.82,136.8,3.22]
[1765383957063,0.04838162,136.82,136.8,12.22437186]
[1765383957258,0.04838162,136.82,136.81,3.22]
[1765383959670,0.04838162,136.82,136.79,12.27818284]
[1765383959854,0.04838162,136.82,136.8,3.22]
[1765383960671,0.04838162,136.82,136.81,3.22]
[1765383964069,0.04838162,136.82,136.8,12.24437186]
[1765383964265,0.04838162,136.82,136.81,3.24]
[1765383965062,9.946,136.87,136.81,3.24]
[1765383965573,6.5751,136.89,136.83,3.24]
[1765383965774,3.37,136.88,136.84,3.24]
[1765383966072,0.04504426,136.87,136.85,3.28939709]
[1765383966663,0.04504426,136.87,136.85,9.86599709]
[1765383966977,0.04504426,136.87,136.86,3.24]
[1765383967176,3.41504426,136.87,136.85,3.28939709]
[1765383967482,0.04504426,136.87,136.85,3.28939709]
[1765383967977,0.04504426,136.87,136.86,3.24]
[1765383970667,3.37,136.91,136.86,3.24]
[1765383970881,3.37,136.91,136.87,3.11]
[1765383971174,9.7733,136.92,136.89,3.11]
[1765383971774,9.7733,136.92,136.89,3.15977741]
[1765383972578,9.7725,136.94,136.89,3.15977741]
[1765383972772,3.2,136.93,136.89,3.15977741]
[1765383974975,6.573,136.93,136.89,3.15977741]
[1765383975179,3.2,136.92,136.89,3.15977741]
[1765383981780,6.5728,136.93,136.89,3.15977741]
[1765383982482,9.7728,136.93,136.89,3.15977741]
[1765383982879,3.2,136.92,136.89,3.15977741]
[1765383983085,3.2,136.91,136.89,3.15977741]
[1765383983270,3.2,136.95,136.89,3.15977741]
[1765383983474,3.2,136.94,136.89,3.15977741]
[1765383983882,3.2,136.91,136.89,0.04977741]
[1765383984076,3.2,136.91,136.89,3.15977741]
[1765383985086,3.2,136.9,136.89,0.04977741]
[1765383985283,3.2,136.93,136.89,3.15977741]
[1765383985982,3.2,136.94,136.9,3.11]
[1765383986185,3.2,136.94,136.91,3.16594484]
[1765383986580,3.2,136.93,136.91,0.05594484]
[1765383988784,3.2,136.93,136.91,3.16594484]
[1765383989486,3.2,136.93,136.91,9.73964484]
[1765383989678,3.2,136.96,136.92,3.11]
[1765383989986,3.2,136.96,136.93,3.16508945]
[1765383991184,3.2,136.96,136.93,0.05508945]
[1765383991984,9.7714,136.96,136.93,0.05508945]
[1765383992388,3.2,136.95,136.93,0.05508945]
[1765383994077,3.2,136.95,136.93,3.15508945]
[1765383994283,3.25,136.96,136.93,3.15508945]
[1765383994987,3.25,136.96,136.93,0.05508945]
[1765383995289,9.8214,136.96,136.93,0.05508945]
[1765383995474,3.25,136.95,136.93,0.05508945]
[1765383995885,3.25,136.97,136.93,3.15508945]
[1765383996193,3.25,136.97,136.94,3.1]
[1765383996581,3.25,136.97,136.93,6.62768945]
[1765383996781,3.25,136.97,136.93,9.72768945]
[1765383997297,3.25,136.97,136.93,3.15508945]
[1765383998091,9.821,136.97,136.93,0.05508945]
[1765383998289,3.25,136.96,136.93,0.05508945]
[1765383999187,3.25,136.96,136.93,3.15508945]
[1765383999589,3.25,136.96,136.93,0.05508945]
[1765384000393,3.25,136.95,136.93,0.05508945]
[1765384000589,3.25,136.95,136.93,3.15508945]
[1765384000781,3.25,136.99,136.93,3.15508945]
[1765384001092,3.25,136.97,136.93,3.15508945]
[1765384002296,3.25,136.97,136.94,3.1]
[1765384003190,3.25,136.99,136.94,3.1]
[1765384003385,3.25,136.99,136.95,3.15586894]
[1765384005196,3.25,136.99,136.96,3.1]
[1765384005583,3.25,136.99,136.95,3.15586894]
[1765384005783,3.25,136.98,136.95,0.05586894]
[1765384006992,3.25,136.97,136.95,3.15586894]
[1765384008495,3.25,136.97,136.95,0.05586894]
[1765384008700,3.25,136.97,136.95,3.15586894]
[1765384009294,6.5705,136.98,136.95,3.15586894]
[1765384009295,3.25,136.98,136.95,3.15586894]
[1765384010692,3.25,137.0,136.96,3.1]
[1765384012191,9.8195,137.0,136.96,3.1]
[1765384012392,3.25,137.0,136.96,3.1]
[1765384012898,9.8189,137.02,136.98,3.1]
[1765384013099,9.8189,137.02,136.99,65.20733649]
[1765384014087,9.8189,137.02,137.0,3.1]
[1765384014285,9.8189,137.02,136.99,65.20733649]
[1765384015884,3.25,137.01,136.99,65.20733649]
[1765384016288,3.25,137.06,137.0,3.1]
[1765384016497,3.25,137.07,137.03,2.98384507]
[1765384016702,3.25,137.07,137.04,3.1]
[1765384017093,3.25,137.09,137.06,3.1]
[1765384017291,3.25,137.06,137.02,3.1]
[1765384017495,3.25,137.09,137.02,3.1]
[1765384017787,3.25,137.09,137.06,3.1]
[1765384018390,0.04941222,137.09,137.06,3.14840901]
[1765384018605,3.29941222,137.09,137.06,3.14840901]
[1765384019292,0.04941222,137.09,137.06,3.14840901]
[1765384019499,3.29941222,137.09,137.06,3.14840901]
[1765384020701,3.29941222,137.09,137.06,0.04840901]
[1765384020889,3.29941222,137.09,137.06,3.14840901]
[1765384021091,0.04941222,137.09,137.06,3.14840901]
[1765384021290,0.04941222,137.09,137.08,3.1]
[1765384021492,3.25,137.14,137.08,3.1]
[1765384021689,3.25,137.23,137.15,3.1]
[1765384021892,3.25,137.23,137.13,105.07584507]
[1765384021893,3.25,137.22,137.17,3.1]
[1765384022290,3.25,137.22,137.19,3.1]
[1765384022496,3.25,137.22,137.18,3.1]
[1765384022697,3.25,137.22,137.19,0.05277603]
[1765384022900,3.25,137.2,137.19,0.05277603]
[1765384023293,6.23384507,137.2,137.19,0.05277603]
[1765384024394,3.32,137.19,137.1,65.37]
[1765384024596,6.30384507,137.16,137.1,65.37]
[1765384024796,3.32,137.16,137.11,3.35]
[1765384025391,0.04967844,137.15,137.13,3.35]
[1765384025889,3.36967844,137.15,137.12,3.40326623]
[1765384026496,0.04967844,137.15,137.12,3.40326623]
[1765384029710,102.0006,137.26,137.12,3.40326623]
[1765384029711,3.32,137.21,137.13,3.35]
[1765384030504,3.32,137.21,137.16,3.35]
[1765384030710,3.32,137.21,137.18,3.35]
[1765384031010,3.32,137.21,137.18,3.39991866]
[1765384031614,3.32,137.21,137.18,0.04991866]
[1765384032208,9.8797,137.21,137.18,0.04991866]
[1765384032411,3.32,137.2,137.18,0.04991866]
[1765384034908,3.33,137.22,137.18,3.30991866]
[1765384035102,3.33,137.26,137.19,3.26]
[1765384035298,3.33,137.26,137.21,3.31582764]
[1765384035700,6.89533247,137.27,137.22,9.8185]
[1765384035908,6.89533247,137.27,137.23,3.26]
[1765384036103,3.31768229,137.27,137.23,3.26]
[1765384036506,3.33,137.26,137.23,61.98]
[1765384037414,3.31768229,137.27,137.25,3.26]
[1765384037612,3.31768229,137.27,137.25,3.30870118]
[1765384037808,101.9108,137.38,137.26,2.95]
[1765384038009,3.33,137.4,137.32,2.95]
[1765384038214,3.33,137.4,137.35,0.04924893]
[1765384038605,3.33,137.37,137.35,0.04924893]
[1765384039007,3.33,137.37,137.28,2.95]
[1765384039213,3.33,137.37,137.3,2.95]
[1765384040009,3.33,137.36,137.3,2.95]
[1765384040214,3.33,137.36,137.32,0.04653606]
[1765384040215,3.33,137.34,137.32,0.04653606]
[1765384040413,0.05234652,137.35,137.32,0.04653606]
[1765384040414,3.38234652,137.35,137.32,0.04653606]
[1765384042106,3.33,137.33,137.32,0.04653606]
[1765384042318,3.33,137.33,137.27,61.94]
[1765384043417,0.04839589,137.31,137.29,0.0476189]
[1765384044027,3.37839589,137.31,137.29,0.0476189]
[1765384044227,0.04839589,137.31,137.29,3.0476189]
[1765384045016,3.33,137.41,137.33,2.95]
[1765384045222,3.33,137.41,137.34,61.94]
[1765384045420,3.33,137.4,137.34,61.94]
[1765384045822,3.33,137.39,137.34,61.94]
[1765384046020,3.33,137.37,137.35,0.0529206]
[1765384046925,0.04914389,137.38,137.35,3.0029206]
[1765384047607,0.04914389,137.38,137.35,0.0529206]
[1765384048123,3.37914389,137.38,137.35,0.0529206]
[1765384049120,3.33,137.36,137.35,0.0529206]
[1765384051821,3.37914389,137.38,137.35,0.0529206]
[1765384053125,0.04914389,137.38,137.36,2.95]
[1765384053328,3.37914389,137.38,137.35,0.0529206]
[1765384054729,0.04914389,137.38,137.35,3.0029206]
[1765384060035,3.36914389,137.38,137.35,0.0529206]
[1765384060428,3.32,137.36,137.35,0.0529206]
[1765384061628,3.32,137.35,137.31,61.88]
[1765384062432,3.32,137.34,137.25,2.95]
[1765384062641,3.32,137.3,137.28,0.04990833]
[1765384062832,3.3705423,137.3,137.28,0.04979054]
[1765384063829,0.0505423,137.3,137.28,0.04979054]
[1765384064034,3.3705423,137.3,137.28,0.04979054]
[1765384064237,3.3705423,137.3,137.24,61.88]
[1765384064635,3.3705423,137.3,137.21,2.95]
[1765384064941,3.32,137.27,137.21,2.95]
[1765384065142,6.5562,137.28,137.23,0.05023662]
[1765384065143,3.37315376,137.25,137.23,0.05023662]
[1765384066534,3.37315376,137.25,137.15,145.69791409]
[1765384066743,3.32,137.22,137.15,148.64791409]
[1765384066940,3.32,137.22,137.16,2.95]
[1765384067646,0.04871215,137.2,137.18,0.04699534]
[1765384067833,3.36871215,137.2,137.18,0.04699534]
[1765384072246,3.36871215,137.2,137.13,2.95]
[1765384072442,3.32,137.19,137.1,64.85]
[1765384072740,3.32,137.19,137.1,2.95]
[1765384073142,6.5611,137.18,137.1,9.5144]
[1765384073450,0.05321431,137.15,137.13,3.00346074]
[1765384074747,0.05321431,137.15,137.13,9.56646074]
[1765384075948,0.05321431,137.15,137.13,0.05346074]
[1765384076648,3.37321431,137.15,137.13,0.05346074]